bitfinex/quotes_ETHUSD_20260120
["timestamp","ask_amount","ask_price","bid_price","bid_amount"]
[1768942657550,1.043738,3000.6,2999.9,0.002]
[1768942657916,1.043738,3000.6,2999.6,1.08248898]
[1768942658113,1.043738,3000.6,2999.1,3.33628799]
[1768942658114,1.043738,3000.4,2999.2,1.08048898]
[1768942658520,1.043738,3000.4,2999.4,1.08248898]
[1768942658719,0.536,3000.3,2999.4,1.08248898]
[1768942659338,1.043738,3000.2,2999.4,1.08248898]
[1768942660541,1.043738,3000.6,2999.4,1.08248898]
[1768942660944,1.53495787,3000.6,2999.6,1.08048898]
[1768942661148,1.043738,3000.5,2999.6,1.08048898]
[1768942661646,1.043738,3000.3,2999.4,0.002]
[1768942661837,1.043738,3000.3,2999.4,1.08248898]
[1768942663045,1.043738,3000.3,2999.4,0.002]
[1768942663441,1.044738,3000.3,2999.4,0.002]
[1768942664350,1.044738,3000.3,2999.4,1.18525187]
[1768942664551,0.001,3000.3,2999.4,1.18525187]
[1768942667563,1.18590496,3000.3,2999.4,1.18525187]
[1768942669231,1.18590496,3000.3,2999.6,1.16508712]
[1768942669429,0.001,3000.3,2999.6,1.16508712]
[1768942670361,0.2335703,3001.1,2999.4,3.33599701]
[1768942670362,1.18490496,3000.8,2999.7,1.16508712]
[1768942670537,1.18490496,3000.8,2999.5,1.16508712]
[1768942670745,1.18490496,3000.6,2999.6,0.17070871]
[1768942670965,1.18490496,3000.6,2999.6,1.33579583]
[1768942673569,1.18490496,3000.5,2999.6,0.17070871]
[1768942673773,1.18490496,3000.5,2999.4,0.002]
[1768942674744,1.18490496,3000.4,2999.4,0.002]
[1768942675254,1.18490496,3000.4,2999.8,0.002]
[1768942675454,3.33281283,3000.5,2999.4,0.002]
[1768942675455,1.18490496,3000.2,2999.4,0.002]
[1768942675777,1.18490496,3000.2,2999.5,0.002]
[1768942675952,1.18490496,3000.0,2999.1,0.002]
[1768942676294,1.18490496,3000.0,2999.1,0.17270871]
[1768942676447,1.18490496,3000.0,2999.1,1.33779583]
[1768942677272,1.18490496,3000.0,2999.1,0.17270871]
[1768942677463,1.18490496,3000.0,2999.1,0.002]
[1768942680083,1.18590496,3000.3,2999.2,1.16508712]
[1768942680394,0.001,3000.3,2999.2,1.16508712]
[1768942680592,1.18590496,3000.3,2999.2,1.16508712]
[1768942680902,1.18590496,3000.3,2999.1,0.002]
[1768942681094,1.18490496,3000.2,2999.1,0.002]
[1768942681260,1.18490496,3000.0,2999.1,1.16708712]
[1768942681459,1.18490496,2999.9,2999.1,1.16708712]
[1768942682591,0.538,3000.3,2999.1,1.16708712]
[1768942682794,1.18490496,3000.2,2999.1,1.16708712]
[1768942682985,1.35719546,3000.2,2999.1,1.16708712]
[1768942685096,0.001,3000.3,2999.2,1.16508712]
[1768942686196,1.18490496,3000.2,2999.1,0.002]
[1768942686365,1.18490496,3000.2,2999.1,1.16708712]
[1768942687865,1.72190496,3000.2,2999.3,1.16708712]
[1768942688100,0.537,3000.2,2999.3,1.16708712]
[1768942688301,0.537,3000.2,2999.4,1.16508712]
[1768942689296,0.001,3000.3,2999.4,1.16508712]
[1768942689500,0.538,3000.3,2999.4,1.16508712]
[1768942689800,0.001,3000.3,2999.4,1.16508712]
[1768942689970,0.001,3000.3,2999.5,1.16508712]
[1768942690171,0.001,3000.3,2999.7,1.16508712]
[1768942692670,1.18590496,3000.3,2999.4,1.16508712]
[1768942693576,0.538,3000.3,2999.4,1.16508712]
[1768942693779,0.001,3000.3,2999.5,1.16508712]
[1768942697080,0.001,3000.3,2999.6,1.29277334]
[1768942697287,0.001,3000.3,2999.8,1.29277334]
[1768942698075,0.001,3000.3,2999.4,0.54]
[1768942698076,0.08413679,2999.8,2999.5,1.29277334]
[1768942702018,0.08413679,2999.8,2999.3,1.29477334]
[1768942702574,0.08413679,2999.8,2999.3,0.002]
[1768942702781,1.29468546,2999.8,2999.3,0.002]
[1768942706497,0.08413679,2999.8,2999.3,0.81877334]
[1768942707018,0.08413679,2999.8,2999.1,1.29477334]
[1768942707313,0.08413679,2999.8,2999.2,1.29277334]
[1768942707991,1.29468546,2999.8,2999.2,1.29277334]
[1768942710186,0.08413679,2999.8,2999.3,5.2553252]
[1768942710391,0.001,3000.3,2999.6,1.29277334]
[1768942710392,1.21154867,3000.3,2999.6,1.29277334]
[1768942710621,4.00452017,3003.1,2999.5,5.2553252]
[1768942710622,1.21054867,3001.1,3000.2,10.5106504]
[1768942710805,1.21054867,3001.1,3000.5,5.2553252]
[1768942711006,1.21054867,3001.4,3000.2,1.29277334]
[1768942711209,1.21054867,3001.4,2999.8,1.29277334]
[1768942711520,1.21054867,3001.2,2999.6,1.29277334]
[1768942711827,1.21054867,3000.8,2999.6,1.29277334]
[1768942712122,1.21054867,3000.6,2999.4,1.29277334]
[1768942712321,1.21054867,3000.6,2999.5,0.51668231]
[1768942712906,1.21054867,3000.6,2999.4,0.002]
[1768942713220,0.001,2999.6,2999.4,1.29477334]
[1768942713396,0.001,2999.6,2999.4,0.002]
[1768942714192,0.537,3000.3,2999.5,1.29277334]
[1768942714391,1.21054867,3001.3,2999.6,1.29277334]
[1768942714626,1.21054867,3001.1,2999.8,1.29277334]
[1768942715109,1.21054867,3001.1,2999.5,6.66777796]
[1768942715110,1.21054867,3000.9,2999.5,1.29277334]
[1768942715386,1.21054867,3000.9,2999.5,4.62665108]
[1768942715609,1.21054867,3000.9,2999.6,1.29277334]
[1768942715809,1.21054867,3000.9,2999.4,0.542]
[1768942715997,1.21054867,3000.9,2999.5,0.51688315]
[1768942716333,1.21054867,3000.9,2999.5,5.14354326]
[1768942716687,0.537,3000.8,2999.6,1.29277334]
[1768942717001,1.21054867,3000.7,2999.6,1.29277334]
[1768942717910,1.21054867,3000.7,2999.4,0.002]
[1768942718232,1.21054867,3000.5,2999.4,0.002]
[1768942718429,1.21054867,3000.5,2999.4,1.29477334]
[1768942720902,1.21054867,3000.8,2999.6,1.29277334]
[1768942721298,1.21054867,3000.9,2999.6,1.29277334]
[1768942721502,1.38530354,3000.9,2999.8,1.29277334]
[1768942722504,3.33180436,3001.4,2999.8,1.29277334]
[1768942722505,1.21054867,3001.4,2999.9,1.29277334]
[1768942722716,1.21054867,3001.4,3000.1,1.29277334]
[1768942724334,1.21054867,3001.4,2999.9,1.40543663]
[1768942724533,1.21054867,3001.4,3000.0,1.40543663]
[1768942724717,0.001,3000.6,3000.1,1.40543663]
[1768942725814,0.001,3000.6,2999.8,3.33355428]
[1768942725815,1.42500372,3000.5,2999.5,1.41633876]
[1768942726208,1.42500372,3000.5,2999.7,1.41633876]
[1768942726440,0.001,3000.6,2999.8,1.41633876]
[1768942726441,0.538,3000.6,2999.8,1.41633876]
[1768942726637,0.73430037,3000.6,2999.8,1.41633876]
[1768942727010,1.42500372,3000.5,2999.6,1.41633876]
[1768942727209,1.42500372,3000.5,2999.5,1.41633876]
[1768942727410,1.42500372,3000.5,2999.6,1.41633876]
[1768942727810,1.42500372,3000.5,2999.4,0.002]
[1768942728028,1.42500372,3000.3,2999.4,0.002]
[1768942730739,0.537,3000.3,2999.4,1.41833876]
[1768942730941,0.537,3000.4,2999.5,1.41633876]
[1768942732116,1.42500372,3000.5,2999.5,1.41633876]
[1768942732315,1.42500372,3000.4,2999.5,1.41633876]
[1768942732537,0.19620037,3000.3,2999.5,1.41633876]
[1768942732749,1.62120409,3000.3,2999.5,1.41633876]
[1768942732948,1.62120409,3000.3,2999.4,0.002]
[1768942733626,0.19620037,3000.3,2999.5,1.41633876]
[1768942733813,0.0336,3000.4,2999.5,1.41633876]
[1768942734722,1.42500372,3001.2,2999.7,1.41633876]
[1768942734936,1.42500372,3001.2,2999.9,1.41633876]
[1768942735248,1.42500372,3001.2,3000.1,1.41633876]
[1768942735622,1.42500372,3001.0,2999.9,1.41633876]
[1768942737136,1.25800372,3001.0,2999.9,1.41633876]
[1768942737330,1.79500372,3001.0,2999.9,1.41633876]
[1768942737546,1.42500372,3000.9,2999.9,1.41633876]
[1768942737748,1.62120409,3000.9,2999.9,0.47518943]
[1768942737936,1.42500372,3000.8,2999.9,0.47518943]
[1768942739032,0.537,3001.0,3000.0,4.74966546]
[1768942739231,0.537,3001.0,3000.1,1.41633876]
[1768942739544,2.15820409,3001.0,3000.1,1.41633876]
[1768942740318,1.42500372,3000.9,2999.8,1.41633876]
[1768942740754,1.42500372,3000.9,2999.7,0.002]
[1768942740956,1.42500372,3000.8,2999.7,0.002]
[1768942741317,1.42500372,3000.8,2999.7,1.41833876]
[1768942741518,1.42500372,3000.6,2999.7,0.002]
[1768942743057,1.9007391,3000.7,2999.7,1.41833876]
[1768942743271,1.42500372,3001.7,2999.8,1.41633876]
[1768942743752,1.42500372,3001.6,3000.2,1.41633876]
[1768942743921,1.42500372,3001.6,3000.4,1.41633876]
[1768942744122,0.001,3002.0,3000.6,1.41633876]
[1768942744366,0.001,3002.0,3001.0,1.41633876]
[1768942744658,0.001,3002.0,3001.2,1.41633876]
[1768942745043,0.001,3002.0,3001.3,1.41633876]
[1768942745219,1.42500372,3003.6,3001.4,1.41633876]
[1768942745426,1.42500372,3003.4,3001.4,1.41633876]
[1768942745740,1.42500372,3003.2,3001.4,1.41633876]
[1768942746535,1.42500372,3003.1,3001.3,1.41633876]
[1768942746850,1.42500372,3002.9,3001.4,1.41633876]
[1768942747033,1.42500372,3002.9,3001.5,1.41633876]
[1768942747430,0.19610037,3003.3,3001.4,6.66345721]
[1768942747431,0.536,3003.1,3001.7,1.41633876]
[1768942747746,1.62110409,3003.0,3001.7,1.61197264]
[1768942748052,0.19610037,3003.0,3001.7,1.61197264]
[1768942748259,1.42500372,3003.4,3001.8,1.41633876]
[1768942748624,1.96100372,3003.7,3001.8,1.41633876]
[1768942748861,1.42500372,3003.6,3001.8,1.41633876]
[1768942749055,1.42500372,3003.6,3002.0,1.41633876]
[1768942749252,0.19610037,3003.5,3002.2,1.41633876]
[1768942749427,1.42500372,3003.8,3002.2,1.41633876]
[1768942749639,1.42660372,3004.0,3002.2,1.41633876]
[1768942750337,1.42500372,3003.9,3002.2,1.41633876]
[1768942750641,1.96100372,3003.9,3002.2,1.41633876]
[1768942750823,1.62126409,3003.8,3002.4,1.41633876]
[1768942751257,1.62126409,3003.8,3002.5,1.41633876]
[1768942752046,0.19626037,3003.8,3002.7,1.41633876]
[1768942752254,0.0016,3004.0,3002.7,1.41633876]
[1768942752967,1.42500372,3004.8,3003.6,1.41713876]
[1768942753733,1.42500372,3004.7,3003.6,1.41713876]
[1768942753946,1.42500372,3004.7,3003.6,0.0008]
[1768942754148,1.42500372,3004.5,3003.6,0.0008]
[1768942755163,1.50255177,3004.8,3003.6,1.53065361]
[1768942755368,0.0016,3005.0,3003.6,1.53065361]
[1768942755369,0.0016,3005.0,3003.8,1.52985361]
[1768942755543,0.0016,3005.0,3004.0,1.52985361]
[1768942755748,0.0016,3005.0,3004.0,2.06985361]
[1768942755943,1.50415177,3005.0,3004.0,2.06985361]
[1768942756152,1.50415177,3005.0,3003.8,0.54]
[1768942756383,1.50415177,3005.0,3003.9,1.52985361]
[1768942756549,0.0016,3005.0,3003.9,1.73683897]
[1768942756744,1.50415177,3005.0,3003.9,2.27683897]
[1768942757062,1.50415177,3005.0,3003.9,0.54]
[1768942757580,0.0016,3005.0,3004.0,1.52985361]
[1768942757872,0.0016,3005.0,3003.6,6.48582566]
[1768942757873,1.50255177,3004.9,3003.7,1.52985361]
[1768942758047,0.0016,3005.0,3003.8,3.32907803]
[1768942758252,0.0016,3005.0,3003.9,1.52985361]
[1768942758451,1.50415177,3005.0,3003.9,1.52985361]
[1768942758650,1.50415177,3005.0,3003.8,0.71991949]
[1768942758839,1.50255177,3004.9,3003.6,0.0008]
[1768942759258,0.0016,3005.0,3003.8,1.52985361]
[1768942759565,0.0016,3005.0,3003.9,1.52985361]
[1768942759771,0.0016,3005.0,3003.6,0.0008]
[1768942759772,1.50415177,3005.0,3003.6,1.53065361]
[1768942759936,1.50415177,3005.0,3003.7,0.54]
[1768942760133,1.50255177,3004.9,3003.6,0.0008]
[1768942760337,1.50255177,3004.9,3003.6,1.53065361]
[1768942760563,1.50255177,3004.9,3003.7,0.20706536]
[1768942760963,0.001,3004.6,3003.7,0.20706536]
[1768942761174,0.001,3004.6,3003.8,1.52985361]
[1768942761370,0.0016,3005.0,3003.8,1.52985361]
[1768942761540,0.0016,3005.0,3004.0,1.52985361]
[1768942761941,0.0016,3005.0,3004.1,2.06985361]
[1768942762241,0.0016,3005.0,3004.0,1.52985361]
[1768942762242,1.50415177,3005.0,3004.0,1.52985361]
[1768942762449,0.0016,3005.0,3004.0,1.52985361]
[1768942763058,0.0016,3005.0,3004.4,1.52985361]
[1768942763256,0.0016,3005.0,3004.6,1.52985361]
[1768942763459,0.535,3006.0,3004.6,0.0008]
[1768942763460,1.50255177,3005.9,3004.6,0.0008]
[1768942763661,1.50255177,3005.6,3004.6,0.0008]
[1768942763867,1.50165177,3005.6,3004.6,0.0008]
[1768942764181,1.50255177,3005.4,3004.3,0.0008]
[1768942765085,1.50255177,3005.4,3003.6,1.53065361]
[1768942765086,1.50255177,3005.0,3003.6,0.0008]
[1768942765275,1.50255177,3004.8,3003.6,0.0008]
[1768942766351,1.50255177,3005.1,3003.6,1.53065361]
[1768942766794,1.70630695,3005.1,3003.6,1.53065361]
[1768942766999,1.70630695,3005.1,3003.8,1.52985361]
[1768942767485,1.70630695,3005.1,3003.9,1.52985361]
[1768942767486,0.20375518,3005.1,3003.9,1.52985361]
[1768942767694,1.50255177,3005.5,3003.9,1.52985361]
[1768942767990,1.50255177,3005.4,3004.0,0.539]
[1768942768194,1.50255177,3005.4,3004.1,1.52985361]
[1768942769146,2.17441137,3005.7,3004.4,4.85830521]
[1768942769350,0.6718596,3005.7,3004.6,1.52985361]
[1768942769578,1.50255177,3006.0,3004.7,2.06885361]
[1768942769770,1.50255177,3005.9,3004.7,0.539]
[1768942769970,1.50255177,3005.7,3004.5,0.48583052]
[1768942770175,1.50255177,3005.7,3004.3,0.539]
[1768942770582,1.50255177,3005.7,3004.4,1.52985361]
[1768942770751,1.50255177,3005.7,3004.1,1.52985361]
[1768942770948,1.50255177,3005.7,3004.2,0.539]
[1768942771147,3.32709356,3005.7,3004.2,2.06885361]
[1768942771386,1.83526113,3005.6,3004.3,0.20688536]
[1768942771579,1.50255177,3005.6,3004.3,0.20688536]
[1768942773155,1.50255177,3005.6,3004.3,1.73673897]
[1768942773454,1.50255177,3005.6,3004.4,1.52985361]
[1768942773853,1.50255177,3005.9,3004.4,1.52985361]
[1768942774597,1.46975625,3005.9,3004.4,1.52985361]
[1768942774771,1.46975625,3005.9,3004.5,2.36943513]
[1768942775081,1.46975625,3005.9,3004.5,0.83958152]
[1768942775305,1.50255177,3005.8,3004.6,0.539]
[1768942775462,1.50255177,3006.0,3004.7,1.52985361]
[1768942775655,1.50255177,3006.0,3004.3,1.73873897]
[1768942775852,1.50255177,3006.0,3004.6,0.539]
[1768942776286,1.50255177,3006.0,3004.5,0.539]
[1768942776491,1.50255177,3005.8,3004.6,0.53972135]
[1768942776958,1.50255177,3005.8,3004.5,0.539]
[1768942777592,1.50255177,3005.7,3004.3,0.002]
[1768942777779,1.50255177,3005.5,3004.3,0.002]
[1768942777963,1.70620695,3005.4,3004.4,0.33305766]
[1768942778284,1.50255177,3005.4,3004.3,1.53185361]
[1768942778890,1.50255177,3005.4,3004.3,0.002]
[1768942780209,1.50255177,3005.3,3004.3,0.002]
[1768942780497,1.98554453,3005.2,3004.3,0.002]
[1768942780793,1.50255177,3005.1,3004.3,0.002]
[1768942781778,1.50255177,3005.0,3004.3,0.002]
[1768942782006,1.50255177,3005.0,3003.6,1.53065361]
[1768942782175,1.50255177,3005.0,3003.6,0.0008]
[1768942782376,1.50255177,3004.8,3003.6,1.53065361]
[1768942782604,1.50255177,3005.1,3003.9,1.52985361]
[1768942782899,0.0205,3005.0,3003.9,1.52985361]
[1768942783063,0.0205,3005.0,3003.6,1.53065361]
[1768942783064,1.52305177,3005.0,3003.6,1.53065361]
[1768942783405,1.52305177,3005.0,3003.7,1.52985361]
[1768942783561,1.50255177,3004.9,3003.7,1.52985361]
[1768942783767,1.50255177,3004.9,3003.6,0.0008]
[1768942784189,1.50255177,3004.5,3003.6,0.0008]
[1768942785665,1.61679848,3004.8,3003.6,1.62820353]
[1768942785976,1.61679848,3004.7,3003.6,1.62820353]
[1768942786501,1.61679848,3004.7,3003.6,0.0008]
[1768942786804,1.61679848,3004.7,3003.9,0.002]
[1768942787907,0.69273714,3004.8,3003.9,1.62940353]
[1768942788202,1.61679848,3004.7,3003.6,0.0008]
[1768942789990,1.85036878,3004.8,3003.6,0.0008]
[1768942790186,1.61679848,3004.7,3003.6,0.0008]
[1768942790384,1.61679848,3004.7,3003.6,1.62820353]
[1768942790569,0.0177,3004.9,3003.8,1.62740353]
[1768942790971,1.63449848,3004.9,3003.8,1.62740353]
[1768942791171,1.61679848,3004.8,3003.6,0.0008]
[1768942791473,1.61679848,3004.8,3003.6,1.62820353]
[1768942791780,1.61679848,3004.8,3003.6,2.1241745]
[1768942791985,1.61679848,3004.8,3003.7,1.62740353]
[1768942792171,1.61679848,3004.7,3003.6,0.0008]
[1768942792572,1.61679848,3004.5,3003.6,0.0008]
[1768942793121,1.61679848,3004.5,3003.3,0.0008]
[1768942793122,1.61679848,3004.1,3003.3,0.0008]
[1768942793792,1.61679848,3003.9,3003.3,0.0008]
[1768942793991,3.3288948,3004.0,3002.3,0.19563388]
[1768942793992,0.2335703,3003.8,3002.3,0.19563388]
[1768942794193,1.61679848,3003.5,3002.3,0.19563388]
[1768942794392,1.61679848,3003.5,3002.3,1.82303741]
[1768942794626,1.61679848,3003.5,3002.4,0.51538785]
[1768942795207,1.61679848,3003.5,3002.3,0.19563388]
[1768942795405,1.61679848,3003.3,3002.3,1.62740353]
[1768942795724,2.15079848,3004.3,3002.7,1.62740353]
[1768942795940,1.61679848,3004.3,3002.9,1.62740353]
[1768942796235,5.97962553,3006.3,3002.6,6.48502566]
[1768942796236,0.534,3005.0,3004.2,6.48502566]
[1768942796390,1.61679848,3004.6,3003.1,1.62740353]
[1768942796589,1.61679848,3004.6,3003.3,0.539]
[1768942796891,1.61679848,3004.6,3003.1,1.62740353]
[1768942797524,1.61679848,3004.6,3002.8,1.62740353]
[1768942797913,1.61679848,3004.6,3003.0,1.62740353]
[1768942798102,1.61679848,3004.6,3002.9,3.33011422]
[1768942798306,1.61679848,3005.4,3004.1,6.48502566]
[1768942798624,1.61679848,3005.4,3004.0,1.62740353]
[1768942798995,1.61679848,3005.4,3003.5,1.62740353]
[1768942799436,1.61679848,3007.6,3006.9,0.23357]
[1768942799739,3.32621706,3008.2,3004.9,7.54619279]
[1768942799740,1.61679848,3006.9,3004.9,7.54619279]
[1768942799953,1.61679848,3006.7,3005.0,1.06069894]
[1768942800234,0.0016,3007.0,3005.6,15.805719]
[1768942800536,0.0016,3007.0,3005.8,1.62740353]
[1768942800755,1.63869848,3007.0,3005.9,0.30607966]
[1768942801037,1.63869848,3007.0,3006.0,0.30607966]
[1768942801203,1.63869848,3007.0,3006.1,0.30607966]
[1768942801402,1.63869848,3007.0,3005.0,1.62740353]
[1768942801403,1.61679848,3006.8,3005.0,1.62740353]
[1768942801632,1.61679848,3006.6,3004.9,10.874079]
[1768942802006,1.61679848,3006.5,3004.9,10.874079]
[1768942802204,0.21507985,3006.7,3004.9,10.874079]
[1768942802205,0.21507985,3006.7,3005.5,1.62740353]
[1768942802407,1.61679848,3006.9,3004.9,10.335079]
[1768942802627,1.61679848,3006.9,3005.1,0.539]
[1768942803165,1.61679848,3006.5,3005.1,0.539]
[1768942803303,1.61679848,3006.3,3004.6,0.539]
[1768942803499,1.61679848,3006.1,3004.6,3.86722585]
[1768942803702,1.61679848,3006.1,3004.7,3.328042]
[1768942804137,1.61679848,3006.1,3004.7,3.32811927]
[1768942804304,1.61679848,3006.1,3004.7,6.65623854]
[1768942804505,1.61679848,3006.1,3004.7,8.28364207]
[1768942804712,0.18318783,3006.0,3004.8,0.88226421]
[1768942805109,0.18318783,3006.0,3004.9,7.00719279]
[1768942805309,0.0158,3006.6,3005.4,7.00719279]
[1768942805638,0.0158,3006.6,3005.5,0.539]
[1768942805848,0.0158,3006.6,3005.6,1.62740353]
[1768942806203,0.0158,3006.6,3005.7,8.28142755]
[1768942806508,1.61679848,3007.3,3005.8,1.62740353]
[1768942806712,1.61679848,3007.3,3005.9,0.82814276]
[1768942807127,1.61679848,3007.3,3005.6,3.32710262]
[1768942807128,1.61839848,3007.0,3005.6,3.32710262]
[1768942807441,1.61679848,3006.9,3005.4,1.62740353]
[1768942807735,1.61679848,3006.9,3005.0,5.49415156]
[1768942807941,1.61679848,3006.9,3005.1,1.62740353]
[1768942808143,1.61679848,3006.7,3005.3,3.32737705]
[1768942808443,1.61679848,3006.6,3004.8,4.21017576]
[1768942808750,1.61679848,3006.6,3005.1,3.32767335]
[1768942809039,1.61679848,3006.6,3005.2,3.32752118]
[1768942809245,1.61679848,3006.6,3005.2,0.33275212]
[1768942809444,1.61679848,3006.6,3005.2,3.32753647]
[1768942809738,1.61679848,3006.6,3004.9,2.16640353]
[1768942809739,1.61679848,3006.6,3004.3,1.62740353]
[1768942809938,1.61679848,3006.4,3004.4,5.49485203]
[1768942810140,1.61679848,3006.4,3004.4,2.16640353]
[1768942810327,1.61679848,3006.4,3004.4,5.49483259]
[1768942810328,1.61679848,3006.2,3004.4,5.49483259]
[1768942810532,1.61679848,3006.0,3004.5,0.54948326]
[1768942811033,1.61679848,3006.0,3005.3,0.002]
[1768942811236,3.32628049,3006.4,3005.3,0.002]
[1768942811237,1.61679848,3006.4,3005.3,0.002]
[1768942811491,0.001,3006.6,3005.3,0.002]
[1768942811946,0.001,3006.6,3005.4,1.62740353]
[1768942812311,0.001,3006.6,3005.4,4.95471969]
[1768942812519,0.001,3006.6,3005.5,0.49567197]
[1768942813025,1.61779848,3006.6,3005.3,0.002]
[1768942813554,1.61779848,3006.6,3005.4,0.30486078]
[1768942813753,1.61779848,3006.6,3005.3,0.002]
[1768942814337,1.61679848,3006.4,3005.3,0.002]
[1768942814636,1.61679848,3006.2,3005.3,0.002]
[1768942814940,1.83177833,3006.1,3005.3,0.002]
[1768942815525,1.83177833,3006.1,3004.6,3.32820122]
[1768942815727,1.83177833,3006.1,3004.7,0.305078]
[1768942816044,1.83177833,3006.1,3004.8,0.305078]
[1768942816260,1.83177833,3006.1,3004.4,3.86642907]
[1768942816418,1.83177833,3006.1,3004.5,7.34841978]
[1768942816419,1.63087925,3005.9,3004.5,7.34841978]
[1768942816619,1.63087925,3005.9,3004.6,0.30509523]
[1768942817516,0.18317783,3006.0,3004.7,0.94258097]
[1768942817721,0.0202,3006.1,3004.8,0.30509523]
[1768942818019,0.0202,3006.1,3004.9,0.30509523]
[1768942818220,0.0202,3006.1,3005.0,0.30509523]
[1768942818413,0.0202,3006.1,3004.8,4.27315901]
[1768942818618,0.0202,3006.1,3004.9,1.06522291]
[1768942818813,0.0202,3006.1,3005.0,0.30510196]
[1768942819226,0.0202,3006.1,3005.1,0.9451505]
[1768942819521,0.0202,3006.1,3005.2,1.25279248]
[1768942819746,0.0202,3006.1,3005.3,0.30510196]
[1768942819948,0.0202,3006.1,3005.2,0.94769052]
[1768942819949,0.0202,3006.1,3005.4,0.30510196]
[1768942820119,0.0202,3006.1,3005.5,0.30510196]
[1768942820322,0.0202,3006.1,3005.3,3.32745482]
[1768942820520,0.0202,3006.1,3005.4,1.06529607]
[1768942820844,0.0202,3006.1,3005.5,0.30503279]
[1768942821049,1.65107925,3006.1,3004.9,4.08800815]
[1768942821249,0.09991384,3005.5,3005.0,0.30514001]
[1768942821546,0.09991384,3005.5,3005.1,0.74445483]
[1768942821851,0.09991384,3005.5,3005.2,0.30514001]
[1768942822240,0.09991384,3005.5,3005.1,0.43931482]
[1768942822420,0.09991384,3005.5,3004.7,0.538]
[1768942822621,0.09991384,3005.5,3004.8,3.6332524]
[1768942822826,0.09991384,3005.5,3004.9,0.30527861]
[1768942823147,0.09991384,3005.5,3005.0,0.30527861]
[1768942823333,0.09991384,3005.5,3005.1,0.30527861]
[1768942823751,0.09991384,3005.5,3004.7,3.86609754]
[1768942823965,0.09991384,3005.5,3005.2,0.002]
[1768942824652,0.09991384,3005.5,3004.9,0.002]
[1768942824653,1.73079309,3005.5,3004.9,0.002]
[1768942824863,1.9038724,3005.5,3004.9,0.002]
[1768942825020,1.9038724,3005.5,3004.6,0.0011]
[1768942825223,1.63087925,3005.4,3004.6,0.0011]
[1768942825454,1.63087925,3005.4,3004.0,0.538]
[1768942825622,1.63087925,3005.4,3004.0,3.86688625]
[1768942825823,1.63087925,3005.2,3004.1,0.38668863]
[1768942826342,1.73079309,3005.5,3004.3,3.32855853]
[1768942826536,1.73079309,3005.5,3004.2,6.65734638]
[1768942826928,1.73079309,3005.5,3004.3,1.02917819]
[1768942827254,0.09991384,3005.5,3004.5,1.02917819]
[1768942828030,0.09991384,3005.5,3004.6,1.57981693]
[1768942828428,0.0202,3006.1,3004.8,1.0543105]
[1768942828631,0.0202,3006.1,3004.9,6.65579552]
[1768942828967,1.63087925,3006.3,3004.9,3.32789776]
[1768942829157,1.63087925,3006.3,3005.0,0.77102003]
[1768942830671,1.63087925,3006.3,3005.0,4.09876409]
[1768942831180,1.63087925,3006.2,3004.8,3.32794466]
[1768942831487,1.63087925,3006.2,3004.9,3.32789773]
[1768942831777,0.63087925,3006.2,3004.8,3.3279702]
[1768942831953,1.63087925,3006.0,3004.8,0.6656198]
[1768942832678,0.3957238,3006.1,3005.0,8.28957657]
[1768942832856,1.63087925,3006.4,3005.0,4.96178955]
[1768942833052,3.86007278,3006.6,3004.4,0.76865246]
[1768942833053,1.63087925,3006.5,3004.6,1.63401886]
[1768942833258,1.63087925,3006.4,3004.9,3.3278711]
[1768942833849,2.16387925,3006.3,3005.0,3.32777722]
[1768942834049,1.63087925,3006.2,3004.7,0.538]
[1768942834249,1.63087925,3006.0,3004.7,3.86604864]
[1768942834474,1.63087925,3006.0,3004.7,0.538]
[1768942834680,2.16387925,3006.0,3004.9,3.32784209]
[1768942834858,2.16387925,3006.0,3004.8,4.96202737]
[1768942835575,2.16387925,3006.0,3004.8,8.29003588]
[1768942835778,2.16387925,3006.0,3004.9,0.88280359]
[1768942835980,1.63087925,3006.0,3004.9,0.88280359]
[1768942836144,0.63087925,3006.0,3004.9,0.88280359]
[1768942836562,0.21798792,3006.1,3004.9,0.88280359]
[1768942836563,0.001,3005.9,3004.9,0.88280359]
[1768942836780,0.001,3005.9,3005.0,4.96180588]
[1768942837076,0.001,3005.9,3005.1,0.58446095]
[1768942837288,0.001,3005.9,3005.2,0.30755294]
[1768942837471,0.001,3005.9,3005.3,0.30755294]
[1768942837673,0.001,3005.9,3005.4,0.30755294]
[1768942837870,0.001,3005.9,3005.1,0.58446095]
[1768942838077,0.001,3005.9,3004.9,0.0008]
[1768942838282,1.63187925,3005.9,3004.9,0.55088271]
[1768942840075,1.63187925,3005.9,3004.9,3.87877899]
[1768942840455,0.63187925,3005.9,3004.9,0.55088271]
[1768942841153,0.65207925,3005.9,3004.9,0.55088271]
[1768942842452,0.65207925,3005.9,3004.9,0.0008]
[1768942842857,1.65107925,3005.9,3004.9,0.0008]
[1768942845915,3.3470411,3005.9,3004.9,0.0008]
[1768942846196,1.82483249,3005.8,3004.9,0.0008]
[1768942848068,1.82483249,3005.8,3005.2,0.002]
[1768942848394,1.82583249,3005.6,3005.2,0.002]
[1768942848581,2.35783249,3005.5,3005.2,0.002]
[1768942849671,2.35783249,3005.5,3004.9,0.0028]
[1768942850465,0.533,3005.5,3004.9,0.0028]
[1768942851194,1.82483249,3005.4,3004.9,0.0028]
[1768942851365,0.23578325,3005.3,3004.9,0.0028]
[1768942851559,0.533,3005.5,3004.9,0.0028]
[1768942854513,0.533,3005.5,3004.9,1.87264144]
[1768942855975,0.533,3005.5,3004.9,0.0028]
[1768942856986,2.35783249,3005.5,3004.9,0.0028]
[1768942857280,1.82483249,3005.4,3004.6,0.0008]
[1768942857605,1.82483249,3005.4,3003.8,3.32910198]
[1768942857606,1.82483249,3005.3,3003.9,1.86984144]
[1768942858098,1.82483249,3005.3,3003.6,1.87184144]
[1768942858288,1.82483249,3005.1,3003.6,1.87184144]
[1768942858478,9.98206565,3005.4,3003.6,2.05902558]
[1768942858479,1.82483249,3004.9,3003.6,2.05902558]
[1768942858680,1.82483249,3004.7,3003.6,2.05902558]
[1768942860410,1.82483249,3004.6,3003.6,0.002]
[1768942861121,1.82483249,3004.1,3002.7,1.86984144]
[1768942861279,1.82483249,3003.9,3002.7,1.86984144]
[1768942861812,1.82483249,3003.9,3002.2,1.86984144]
[1768942862029,1.82483249,3003.7,3002.3,2.11062558]
[1768942862319,1.82483249,3003.5,3002.0,1.87184144]
[1768942862478,2.06061574,3003.8,3002.0,1.87184144]
[1768942862674,0.533,3003.7,3002.0,1.87184144]
[1768942863093,1.82483249,3004.2,3002.4,1.86984144]